[Event "September Lviv Tradition 2019"]
[Site "Lviv"]
[Date "2019.09.24"]
[Round "3.3"]
[White "Frolov, Artur"]
[Black "Gavrish, Leonid"]
[Result "1-0"]
[ECO "A43"]
[WhiteElo "2425"]
[BlackElo "2022"]
[Annotator "NA"]
[PlyCount "47"]
[EventDate "2019.09.23"]
[EventCountry "UKR"]
[SourceTitle "playchess.com"]
[Source "ChessBase"]
[SourceQuality "1"]
[TimeControl "5400+30"]

1. d4 {[%emt 0:01:18]} Nf6 {[%emt 0:00:56]} 2. Nf3 {[%emt 0:00:14]} c5 {[%emt 0:00:06]} 3. d5 {[%emt 0:00:59]} b5 {[%emt 0:00:07]} 4. Bg5 {[%emt 0:11:12]} Ne4 {[%emt 0:00:12]} 5. Bh4 {[%emt 0:01:20]} Bb7 {[%emt 0:00:11]} 6. Qd3 {[%emt 0:01:20]} f5 {[%emt 0:01:35]} 7. Nbd2 {[%emt 0:03:06]} c4 {[%emt 0:01:13]} 8. Qd4 {[%emt 0:00:22]} Nxd2 {[%emt 0:00:45]} 9. Qxd2 {[%emt 0:05:56]} Qb6 {[%emt 0:04:02]} 10. Rd1 {[%emt 0:19:47]} Na6 {[%emt 0:09:35]} 11. g4 {[%emt 0:04:06]} Nc7 {[%emt 0:15:10]} 12. gxf5 {[%emt 0:00:29]} Bxd5 {[%emt 0:09:55]} 13. e4 {[%emt 0:00:46]} Bc6 {[%emt 0:01:42]} 14. Bg2 {[%emt 0:00:46]} d6 {[%emt 0:06:29]} 15. Nd4 {[%emt 0:10:08]} Bb7 {[%emt 0:01:46]} 16. O-O {[%emt 0:04:47]} g6 {[%emt 0:07:43]} 17. f6 {[%emt 0:07:40]} e5 {[%emt 0:02:17]} 18. Nf3 {[%emt 0:00:02]} Qc6 {[%emt 0:11:31]} 19. Bh3 {[%emt 0:11:24]} Kf7 {[%emt 0:09:35]} 20. Bd7 {[%emt 0:04:39]} Qb6 {[%emt 0:03:18]} 21. Ng5+ {[%emt 0:01:37]} Kxf6 {[%emt 0:05:20]} 22. Ne6+ {[%emt 0:01:20]} Kf7 {[%emt 0:00:18]} 23. Qg5 {[%emt 0:00:36]} Ne8 {[%emt 0:03:30]} 24. Nxf8 {[%emt 0:00:28]} 1-0

[Event "September Lviv Tradition 2019"]
[Site "Lviv"]
[Date "2019.09.24"]
[Round "3.4"]
[White "Nester, Ihor"]
[Black "Prydun, Andriy"]
[Result "0-1"]
[ECO "E09"]
[WhiteElo "2383"]
[BlackElo "2273"]
[Annotator "NA"]
[PlyCount "134"]
[EventDate "2019.09.23"]
[EventCountry "UKR"]
[SourceTitle "playchess.com"]
[Source "ChessBase"]
[SourceQuality "1"]
[TimeControl "5400+30"]

1. Nf3 Nf6 {[%emt 0:00:26]} 2. c4 {[%emt 0:02:04]} c6 {[%emt 0:00:06]} 3. d4 {[%emt 0:00:06]} d5 {[%emt 0:00:04]} 4. Qc2 {[%emt 0:00:04]} e6 {[%emt 0:00:06]} 5. g3 {[%emt 0:00:18]} Nbd7 {[%emt 0:00:07]} 6. Bg2 {[%emt 0:00:06]} Be7 {[%emt 0:00:04]} 7. Nbd2 {[%emt 0:00:26]} O-O {[%emt 0:00:07]} 8. O-O {[%emt 0:00:03]} b6 {[%emt 0:00:08]} 9. e4 {[%emt 0:00:11]} Bb7 {[%emt 0:00:08]} 10. e5 {[%emt 0:00:13]} Ne8 {[%emt 0:00:03]} 11. cxd5 {[%emt 0:00:08]} cxd5 {[%emt 0:00:03]} 12. Re1 {[%emt 0:00:38]} Rc8 {[%emt 0:00:09]} 13. Qb3 {[%emt 0:03:31]} Qc7 {[%emt 0:00:11]} 14. Bf1 {[%emt 0:02:51]} Qc2 {[%emt 0:02:21]} 15. Qxc2 {[%emt 0:00:56]} Rxc2 {[%emt 0:00:07]} 16. Bd3 {[%emt 0:00:09]} Rc8 {[%emt 0:00:43]} 17. Nf1 {[%emt 0:06:56]} Nc7 {[%emt 0:00:43]} 18. Bg5 {[%emt 0:07:56]} Bxg5 {[%emt 0:00:58]} 19. Nxg5 {[%emt 0:00:02]} h6 {[%emt 0:00:36]} 20. Nf3 {[%emt 0:01:27]} Ba6 {[%emt 0:00:10]} 21. Bxa6 {[%emt 0:10:03]} Nxa6 {[%emt 0:00:02]} 22. a3 {[%emt 0:00:10]} b5 {[%emt 0:28:20]} 23. Rec1 {[%emt 0:03:00]} Nb6 {[%emt 0:00:31]} 24. b3 {[%emt 0:00:19]} b4 {[%emt 0:03:02]} 25. Rxc8 {[%emt 0:04:17]} Nxc8 {[%emt 0:00:01]} 26. Ne3 {[%emt 0:06:52]} bxa3 {[%emt 0:00:34]} 27. Rxa3 {[%emt 0:00:06]} Nb4 {[%emt 0:01:34]} 28. Kf1 {[%emt 0:17:38]} Nc6 {[%emt 0:05:06]} 29. Ra6 {[%emt 0:18:24]} N8e7 {[%emt 0:00:39]} 30. Nc2 {[%emt 0:01:30]} Rb8 {[%emt 0:00:56]} 31. b4 {[%emt 0:01:28]} g5 {[%emt 0:06:47]} 32. Ra4 {[%emt 0:05:05]} g4 {[%emt 0:11:40]} 33. Nd2 {[%emt 0:00:12]} a5 {[%emt 0:00:28]} 34. Nb3 {[%emt 0:06:06]} axb4 {[%emt 0:01:21]} 35. Ke2 {[%emt 0:00:17]} Rc8 {[%emt 0:08:20]} 36. Nxb4 {[%emt 0:02:45]} Nxb4 {[%emt 0:00:10]} 37. Rxb4 {[%emt 0:00:01]} Rc2+ {[%emt 0:00:02]} 38. Nd2 {[%emt 0:00:58]} Nf5 {[%emt 0:00:02]} 39. Kd3 {[%emt 0:00:38]} Ra2 {[%emt 0:00:41]} 40. Kc3 {[%emt 0:01:15]} Kg7 {[%emt 0:01:04]} 41. Kd3 {[%emt 0:00:11]} h5 {[%emt 0:00:08]} 42. Kc3 {[%emt 0:00:32]} Kg6 {[%emt 0:02:54]} 43. Kd3 {[%emt 0:00:06]} Ne7 {[%emt 0:13:31]} 44. Kc3 {[%emt 0:01:14]} Nc6 {[%emt 0:00:46]} 45. Rb7 {[%emt 0:00:42]} Nxd4 {[%emt 0:00:37]} 46. Kxd4 {[%emt 0:00:30]} Rxd2+ {[%emt 0:00:03]} 47. Ke3 {[%emt 0:00:08]} Rd1 {[%emt 0:00:05]} 48. f4 {[%emt 0:00:26]} gxf3 {[%emt 0:00:12]} 49. Kxf3 {[%emt 0:00:07]} Re1 {[%emt 0:00:04]} 50. h4 {[%emt 0:00:38]} Rxe5 {[%emt 0:00:06]} 51. Rd7 {[%emt 0:00:01]} Re4 {[%emt 0:00:23]} 52. Rd8 {[%emt 0:00:03]} Kg7 {[%emt 0:00:19]} 53. Rd7 {[%emt 0:00:09]} Ra4 {[%emt 0:00:08]} 54. Rd8 {[%emt 0:00:05]} Ra3+ {[%emt 0:02:25]} 55. Kf4 {[%emt 0:00:02]} Kf6 {[%emt 0:00:14]} 56. Rd6 {[%emt 0:00:43]} Ra4+ {[%emt 0:04:14]} 57. Kf3 {[%emt 0:00:03]} Ke5 {[%emt 0:01:53]} 58. Rd7 {[%emt 0:00:22]} Ra3+ {[%emt 0:00:53]} 59. Kg2 {[%emt 0:00:02]} f5 {[%emt 0:00:49]} 60. Rh7 {[%emt 0:00:02]} d4 {[%emt 0:00:34]} 61. Rxh5 {[%emt 0:00:04]} Ra2+ {[%emt 0:08:24]} 62. Kf3 {[%emt 0:00:11]} Ra3+ {[%emt 0:00:07]} 63. Kg2 {[%emt 0:00:16]} d3 {[%emt 0:00:47]} 64. Rh8 {[%emt 0:00:02]} Ra4 {[%emt 0:01:15]} 65. Kf2 {[%emt 0:00:28]} Ke4 {[%emt 0:00:21]} 66. Rd8 {[%emt 0:00:41]} Ra2+ {[%emt 0:00:06]} 67. Kg1 {[%emt 0:00:08]} d2 {[%emt 0:00:15]} 0-1

[Event "September Lviv Tradition 2019"]
[Site "Lviv"]
[Date "2019.09.24"]
[Round "3.5"]
[White "Sevostianov, Pavel"]
[Black "Siniauski, Artsiom"]
[Result "1/2-1/2"]
[ECO "A05"]
[WhiteElo "2260"]
[BlackElo "2233"]
[Annotator "NA"]
[PlyCount "61"]
[EventDate "2019.09.23"]
[EventCountry "UKR"]
[SourceTitle "playchess.com"]
[Source "ChessBase"]
[SourceQuality "1"]
[TimeControl "5400+30"]

1. Nf3 {[%emt 0:14:32]} Nf6 {[%emt 0:00:01]} 2. c4 {[%emt 0:00:17]} b6 {[%emt 0:00:18]} 3. g3 {[%emt 0:01:41]} Bb7 {[%emt 0:00:38]} 4. Bg2 {[%emt 0:00:11]} g6 {[%emt 0:02:00]} 5. b3 {[%emt 0:00:48]} Bg7 {[%emt 0:00:33]} 6. Bb2 {[%emt 0:00:07]} O-O {[%emt 0:00:32]} 7. O-O {[%emt 0:00:25]} d6 {[%emt 0:01:08]} 8. d4 {[%emt 0:00:45]} Nbd7 {[%emt 0:03:33]} 9. Nc3 {[%emt 0:01:27]} Ne4 {[%emt 0:03:16]} 10. Qc2 {[%emt 0:02:57]} Nxc3 {[%emt 0:05:13]} 11. Bxc3 {[%emt 0:01:04]} e5 {[%emt 0:02:30]} 12. dxe5 {[%emt 0:01:32]} dxe5 {[%emt 0:01:06]} 13. Ne1 {[%emt 0:02:57]} Bxg2 {[%emt 0:03:06]} 14. Nxg2 {[%emt 0:00:13]} Qe7 {[%emt 0:00:20]} 15. Rad1 {[%emt 0:00:34]} Rfd8 {[%emt 0:07:22]} 16. Ne3 {[%emt 0:07:15]} c6 {[%emt 0:02:34]} 17. b4 {[%emt 0:00:55]} Nf8 {[%emt 0:05:55]} 18. Qe4 {[%emt 0:02:44]} Qe6 {[%emt 0:04:07]} 19. Qc2 {[%emt 0:04:15]} Bh6 {[%emt 0:05:11]} 20. Rd3 {[%emt 0:00:46]} Rd7 {[%emt 0:07:06]} 21. Rfd1 {[%emt 0:01:03]} Rad8 {[%emt 0:00:43]} 22. Rxd7 {[%emt 0:00:56]} Rxd7 {[%emt 0:00:14]} 23. Rxd7 {[%emt 0:00:37]} Nxd7 {[%emt 0:00:09]} 24. Bd2 {[%emt 0:01:31]} Bxe3 {[%emt 0:08:57]} 25. Bxe3 {[%emt 0:00:16]} h5 {[%emt 0:00:11]} 26. a4 {[%emt 0:04:58]} h4 {[%emt 0:03:09]} 27. f3 {[%emt 0:02:45]} c5 {[%emt 0:05:58]} 28. bxc5 {[%emt 0:00:25]} Nxc5 {[%emt 0:00:06]} 29. Bxc5 {[%emt 0:00:04]} bxc5 {[%emt 0:00:04]} 30. Qe4 {[%emt 0:01:27]} hxg3 {[%emt 0:02:13]} 31. hxg3 {[%emt 0:00:05]} 1/2-1/2

[Event "September Lviv Tradition 2019"]
[Site "Lviv"]
[Date "2019.09.25"]
[Round "4.1"]
[White "Goikhman, Valentin"]
[Black "Siniauski, Artsiom"]
[Result "1/2-1/2"]
[ECO "C11"]
[WhiteElo "2295"]
[BlackElo "2233"]
[Annotator "NA"]
[PlyCount "94"]
[EventDate "2019.09.23"]
[EventType "tourn"]
[EventCountry "UKR"]
[SourceTitle "playchess.com"]
[Source "ChessBase"]
[SourceQuality "1"]
[TimeControl "5400+30"]

1. e4 {[%emt 0:00:00]} e6 {[%emt 0:00:00]} 2. d4 {[%emt 0:00:00]} d5 {[%emt 0:00:00]} 3. Nc3 {[%emt 0:00:48]} Nf6 {[%emt 0:00:05]} 4. e5 {[%emt 0:00:57]} Nfd7 {[%emt 0:00:08]} 5. f4 {[%emt 0:01:29]} c5 {[%emt 0:00:10]} 6. Nf3 {[%emt 0:00:03]} Nc6 {[%emt 0:00:10]} 7. Be3 {[%emt 0:00:23]} cxd4 {[%emt 0:00:37]} 8. Nxd4 {[%emt 0:00:43]} Bc5 {[%emt 0:00:22]} 9. Be2 {[%emt 0:10:54]} O-O {[%emt 0:01:43]} 10. Qd2 {[%emt 0:06:01]} a6 {[%emt 0:05:54]} 11. O-O {[%emt 0:02:34]} Nxd4 {[%emt 0:03:13]} 12. Bxd4 {[%emt 0:00:11]} b5 {[%emt 0:00:38]} 13. Kh1 $11 {[%emt 0:15:20]} Qb6 {[%emt 0:18:15]} 14. Bxc5 {[%emt 0:02:53]} Qxc5 {[%emt 0:00:19]} 15. f5 {[%emt 0:07:32]} d4 {[%emt 0:05:52]} 16. Ne4 {[%emt 0:12:00]} Qxe5 {[%emt 0:02:50]} 17. Rae1 {[%emt 0:07:49]} exf5 {[%emt 0:10:55]} 18. Ng3 {[%emt 0:02:10]} Bb7 {[%emt 0:04:47]} 19. Bf3 {[%emt 0:05:02]} Qc7 {[%emt 0:00:15]} 20. Bxb7 {[%emt 0:01:36]} Qxb7 {[%emt 0:00:07]} 21. Nxf5 {[%emt 0:00:47]} g6 {[%emt 0:08:56]} 22. Qh6 {[%emt 0:12:48]} gxf5 {[%emt 0:00:54]} 23. Rf3 {[%emt 0:01:06]} Qb6 {[%emt 0:15:28]} 24. Rg3+ {[%emt 0:00:15]} Qg6 {[%emt 0:00:05]} 25. Qf4 {[%emt 0:02:59]} Rae8 {[%emt 0:00:13]} 26. Rf1 {[%emt 0:00:55]} Re4 {[%emt 0:04:14]} 27. Qxf5 {[%emt 0:00:18]} Kh8 {[%emt 0:00:06]} 28. Qxd7 {[%emt 0:02:53]} Qe6 {[%emt 0:00:11]} 29. Qa7 {[%emt 0:01:47]} Rf4 {[%emt 0:03:17]} 30. Rg1 {[%emt 0:00:37]} Qf6 {[%emt 0:00:46]} 31. h3 {[%emt 0:01:53]} Rg8 {[%emt 0:00:50]} 32. Rxg8+ {[%emt 0:00:27]} Kxg8 {[%emt 0:00:05]} 33. Qb8+ {[%emt 0:00:23]} Kg7 {[%emt 0:00:06]} 34. Re1 {[%emt 0:00:43]} d3 {[%emt 0:03:31]} 35. cxd3 {[%emt 0:00:28]} Rf1+ {[%emt 0:00:04]} 36. Rxf1 {[%emt 0:00:35]} Qxf1+ {[%emt 0:00:04]} 37. Kh2 {[%emt 0:00:02]} Qxd3 {[%emt 0:00:13]} 38. Qg3+ {[%emt 0:00:59]} Qg6 {[%emt 0:00:34]} 39. Qe5+ {[%emt 0:00:12]} Kf8 {[%emt 0:00:25]} 40. a3 {[%emt 0:00:17]} Qb1 {[%emt 0:03:15]} 41. Qh8+ {[%emt 0:00:18]} Ke7 {[%emt 0:00:05]} 42. Qe5+ {[%emt 0:00:03]} Kd7 {[%emt 0:00:20]} 43. h4 {[%emt 0:01:15]} Qg6 {[%emt 0:01:05]} 44. g3 {[%emt 0:00:48]} h5 {[%emt 0:00:30]} 45. Qd5+ {[%emt 0:00:17]} Kc7 {[%emt 0:00:14]} 46. Qc5+ {[%emt 0:00:10]} Kb7 {[%emt 0:00:15]} 47. Qd5+ {[%emt 0:00:54]} Kb6 {[%emt 0:00:08]} 1/2-1/2

[Event "September Lviv Tradition 2019"]
[Site "Lviv"]
[Date "2019.09.25"]
[Round "4.2"]
[White "Prydun, Andriy"]
[Black "Sevostianov, Pavel"]
[Result "0-1"]
[ECO "A46"]
[WhiteElo "2273"]
[BlackElo "2260"]
[Annotator "NA"]
[PlyCount "118"]
[EventDate "2019.09.23"]
[EventType "tourn"]
[EventCountry "UKR"]
[SourceTitle "playchess.com"]
[Source "ChessBase"]
[SourceQuality "1"]
[TimeControl "5400+30"]

1. d4 {[%emt 0:02:18]} Nf6 {[%emt 0:00:00]} 2. Nf3 {[%emt 0:00:05]} d6 {[%emt 0:00:18]} 3. c3 {[%emt 0:00:07]} g6 {[%emt 0:02:08]} 4. Bg5 {[%emt 0:00:11]} Bg7 {[%emt 0:00:17]} 5. Nbd2 {[%emt 0:00:05]} Nc6 {[%emt 0:01:18]} 6. e4 {[%emt 0:02:39]} O-O {[%emt 0:01:18]} 7. Bb5 {[%emt 0:19:39]} Bd7 {[%emt 0:01:15]} 8. Qe2 {[%emt 0:06:00]} a6 {[%emt 0:01:43]} 9. Bd3 {[%emt 0:02:11]} h6 {[%emt 0:04:53]} 10. Bxf6 {[%emt 0:01:33]} exf6 $11 {[%emt 0:02:26]} 11. O-O {[%emt 0:15:15]} Ne7 {[%emt 0:02:18]} 12. Rfe1 {[%emt 0:02:16]} Re8 {[%emt 0:02:10]} 13. Qd1 {[%emt 0:00:05]} Rb8 {[%emt 0:00:41]} 14. Nf1 {[%emt 0:06:27]} f5 {[%emt 0:03:03]} 15. e5 {[%emt 0:00:04]} Bc6 {[%emt 0:00:12]} 16. exd6 {[%emt 0:02:42]} cxd6 {[%emt 0:04:38]} 17. Ne3 {[%emt 0:02:50]} b5 {[%emt 0:02:20]} 18. Nd2 {[%emt 0:09:11]} Qd7 {[%emt 0:01:44]} 19. Nb3 {[%emt 0:08:50]} f4 {[%emt 0:02:26]} 20. Nc2 {[%emt 0:00:23]} Nd5 {[%emt 0:02:12]} 21. Be2 {[%emt 0:01:45]} b4 {[%emt 0:13:24]} 22. c4 {[%emt 0:03:22]} Nf6 {[%emt 0:00:12]} 23. Bf3 {[%emt 0:00:18]} Rxe1+ {[%emt 0:03:27]} 24. Nxe1 {[%emt 0:00:03]} Ba4 {[%emt 0:02:40]} 25. Nd3 {[%emt 0:01:07]} g5 {[%emt 0:01:37]} 26. h3 {[%emt 0:01:53]} Qa7 {[%emt 0:00:33]} 27. c5 {[%emt 0:06:31]} Ne8 {[%emt 0:02:00]} 28. Qe2 {[%emt 0:01:11]} Bb5 {[%emt 0:02:42]} 29. Re1 {[%emt 0:01:42]} a5 {[%emt 0:01:12]} 30. c6 {[%emt 0:02:38]} Bxd4 {[%emt 0:07:46]} 31. Qe4 {[%emt 0:01:34]} Bb6 {[%emt 0:02:38]} 32. Rd1 {[%emt 0:00:30]} Bxd3 {[%emt 0:04:44]} 33. Qxd3 {[%emt 0:00:11]} Bxf2+ 34. Kh1 a4 {[%emt 0:02:45]} 35. Nd2 {[%emt 0:00:03]} Qd4 36. Qc2 Qa7 {[%emt 0:11:23]} 37. Bd5 {[%emt 0:01:10]} Kg7 {[%emt 0:00:42]} 38. Nc4 {[%emt 0:01:10]} Bc5 {[%emt 0:00:58]} 39. Bf3 {[%emt 0:00:18]} b3 {[%emt 0:01:35]} 40. axb3 {[%emt 0:00:11]} axb3 41. Qc3+ Kg8 {[%emt 0:01:55]} 42. Qd3 {[%emt 0:00:22]} Qe7 {[%emt 0:00:26]} 43. Nd2 {[%emt 0:02:07]} Qe3 44. Qf5 Qe5 {[%emt 0:05:56]} 45. Qb1 {[%emt 0:00:17]} Nf6 {[%emt 0:02:19]} 46. Nc4 {[%emt 0:00:45]} Qe7 {[%emt 0:00:17]} 47. Re1 {[%emt 0:00:50]} Qc7 {[%emt 0:00:05]} 48. Qf5 {[%emt 0:00:11]} Kg7 {[%emt 0:00:25]} 49. h4 {[%emt 0:00:55]} Rh8 {[%emt 0:00:57]} 50. Qd3 {[%emt 0:00:32]} g4 {[%emt 0:00:26]} 51. Bd5 {[%emt 0:00:20]} Qd8 {[%emt 0:01:58]} 52. g3 {[%emt 0:00:40]} Re8 {[%emt 0:00:42]} 53. Rf1 {[%emt 0:00:29]} f3 {[%emt 0:00:45]} 54. Nd2 {[%emt 0:00:14]} Qe7 {[%emt 0:00:53]} 55. Bc4 {[%emt 0:00:49]} Qe5 {[%emt 0:01:45]} 56. Kh2 {[%emt 0:00:20]} Nh5 57. Ne4 f5 {[%emt 0:01:09]} 58. Qd5 {[%emt 0:01:08]} Qxd5 {[%emt 0:00:40]} 59. Bxd5 {[%emt 0:00:05]} fxe4 {[%emt 0:00:08]} 0-1

[Event "September Lviv Tradition 2019"]
[Site "Lviv"]
[Date "2019.09.25"]
[Round "4.3"]
[White "Gavrish, Leonid"]
[Black "Nester, Ihor"]
[Result "1/2-1/2"]
[ECO "A85"]
[WhiteElo "2022"]
[BlackElo "2383"]
[Annotator "NA"]
[PlyCount "94"]
[EventDate "2019.09.23"]
[EventType "tourn"]
[EventCountry "UKR"]
[SourceTitle "playchess.com"]
[Source "ChessBase"]
[SourceQuality "1"]
[TimeControl "5400+30"]

1. d4 {[%emt 0:00:00]} f5 {[%emt 0:00:00]} 2. c4 {[%emt 0:00:00]} Nf6 {[%emt 0:00:00]} 3. Nc3 {[%emt 0:00:00]} d6 {[%emt 0:00:00]} 4. Bg5 {[%emt 0:00:54]} Nbd7 {[%emt 0:00:05]} 5. Qc2 {[%emt 0:00:07]} g6 {[%emt 0:00:16]} 6. e4 {[%emt 0:01:14]} fxe4 {[%emt 0:00:46]} 7. Nxe4 {[%emt 0:00:09]} Bg7 {[%emt 0:00:08]} 8. O-O-O {[%emt 0:00:09]} Nxe4 {[%emt 0:02:43]} 9. Qxe4 {[%emt 0:00:17]} Nf6 {[%emt 0:00:10]} 10. Bxf6 {[%emt 0:01:06]} Bxf6 {[%emt 0:01:39]} 11. f4 {[%emt 0:01:25]} c6 {[%emt 0:01:21]} 12. Nf3 {[%emt 0:01:00]} Qa5 {[%emt 0:02:07]} 13. a3 {[%emt 0:00:55]} Bf5 {[%emt 0:10:24]} 14. Qe3 {[%emt 0:02:13]} b5 {[%emt 0:05:08]} 15. Qb3 $15 {[%emt 0:15:46]} bxc4 {[%emt 0:06:20]} 16. Bxc4 {[%emt 0:15:28]} Qc7 {[%emt 0:01:22]} 17. Qa4 {[%emt 0:05:57]} Be4 {[%emt 0:12:54]} 18. Be6 {[%emt 0:16:20]} Kf8 {[%emt 0:08:30]} 19. Rhf1 {[%emt 0:02:48]} Kg7 {[%emt 0:05:09]} 20. g4 {[%emt 0:01:49]} c5 {[%emt 0:05:56]} 21. d5 {[%emt 0:02:31]} Qb7 {[%emt 0:17:48]} 22. Ne5 {[%emt 0:06:43]} dxe5 {[%emt 0:02:22]} 23. g5 {[%emt 0:00:09]} Rab8 {[%emt 0:08:13]} 24. gxf6+ {[%emt 0:05:27]} exf6 {[%emt 0:00:23]} 25. Rd2 {[%emt 0:04:28]} c4 {[%emt 0:06:30]} 26. fxe5 {[%emt 0:14:36]} c3 {[%emt 0:00:02]} 27. exf6+ {[%emt 0:00:05]} Kh6 {[%emt 0:00:32]} 28. Qxe4 {[%emt 0:00:43]} cxd2+ {[%emt 0:00:02]} 29. Kd1 {[%emt 0:00:41]} Qb3+ {[%emt 0:00:20]} 30. Kxd2 {[%emt 0:01:12]} Qxb2+ {[%emt 0:00:10]} 31. Ke1 {[%emt 0:00:23]} Qb1+ {[%emt 0:02:43]} 32. Qxb1 {[%emt 0:00:02]} Rxb1+ {[%emt 0:00:04]} 33. Kf2 {[%emt 0:00:15]} Rxf1+ {[%emt 0:00:54]} 34. Kxf1 {[%emt 0:00:01]} Rf8 {[%emt 0:01:14]} 35. f7 {[%emt 0:00:09]} Kg7 {[%emt 0:00:29]} 36. Kf2 {[%emt 0:00:27]} Rxf7+ {[%emt 0:00:37]} 37. Bxf7 {[%emt 0:00:03]} Kxf7 {[%emt 0:00:01]} 38. Ke3 {[%emt 0:00:57]} Kf6 {[%emt 0:00:01]} 39. Ke4 {[%emt 0:00:59]} h6 {[%emt 0:01:06]} 40. a4 {[%emt 0:00:54]} a5 {[%emt 0:00:01]} 41. Kd4 {[%emt 0:00:34]} g5 {[%emt 0:00:25]} 42. Ke4 {[%emt 0:00:42]} h5 {[%emt 0:00:50]} 43. h3 {[%emt 0:00:21]} Ke7 {[%emt 0:00:41]} 44. Kf5 {[%emt 0:00:09]} g4 {[%emt 0:00:02]} 45. hxg4 {[%emt 0:00:13]} hxg4 {[%emt 0:00:05]} 46. Kxg4 {[%emt 0:00:04]} Kd6 {[%emt 0:00:02]} 47. Kf3 {[%emt 0:00:14]} Ke5 {Ke4+} 1/2-1/2

[Event "September Lviv Tradition 2019"]
[Site "Lviv"]
[Date "2019.09.25"]
[Round "4.4"]
[White "Rydstrom, Tom"]
[Black "Frolov, Artur"]
[Result "1/2-1/2"]
[ECO "C50"]
[WhiteElo "2322"]
[BlackElo "2425"]
[Annotator "NA"]
[PlyCount "85"]
[EventDate "2019.09.23"]
[EventType "tourn"]
[EventCountry "UKR"]
[SourceTitle "playchess.com"]
[Source "ChessBase"]
[SourceQuality "1"]
[TimeControl "5400+30"]

1. e4 {[%emt 0:00:00]} e5 {[%emt 0:00:00]} 2. Nf3 {[%emt 0:00:00]} Nc6 {[%emt 0:00:00]} 3. Bc4 {[%emt 0:00:24]} Bc5 {[%emt 0:00:00]} 4. d3 {[%emt 0:00:07]} Nf6 {[%emt 0:00:47]} 5. Nbd2 {[%emt 0:00:30]} O-O {[%emt 0:00:47]} 6. O-O {[%emt 0:00:31]} d6 {[%emt 0:03:14]} 7. c3 {[%emt 0:00:10]} a6 {[%emt 0:01:25]} 8. Bb3 {[%emt 0:00:04]} Ba7 {[%emt 0:01:24]} 9. Re1 {[%emt 0:01:58]} Ne7 {[%emt 0:00:41]} 10. Nf1 {[%emt 0:00:54]} Ng6 {[%emt 0:00:51]} 11. Ng3 {[%emt 0:00:10]} c5 {[%emt 0:08:52]} 12. h3 {[%emt 0:01:06]} Be6 {[%emt 0:05:56]} 13. Be3 {[%emt 0:08:40]} Re8 {[%emt 0:05:00]} 14. Ng5 {[%emt 0:13:47]} h6 {[%emt 0:00:13]} 15. Nxe6 {[%emt 0:00:04]} fxe6 $14 {[%emt 0:00:05]} 16. d4 {[%emt 0:01:03]} cxd4 {[%emt 0:01:01]} 17. cxd4 {[%emt 0:01:50]} Kh7 {[%emt 0:00:57]} 18. Qd2 {[%emt 0:08:48]} Qe7 {[%emt 0:07:00]} 19. Rad1 {[%emt 0:00:34]} Rac8 {[%emt 0:05:35]} 20. Qd3 {[%emt 0:10:37]} exd4 {[%emt 0:09:28]} 21. Bxd4 {[%emt 0:00:13]} Bxd4 {[%emt 0:00:04]} 22. Qxd4 {[%emt 0:00:04]} Rc6 {[%emt 0:00:10]} 23. Qd3 {[%emt 0:09:00]} Nd7 {[%emt 0:04:55]} 24. Qe3 {[%emt 0:05:46]} Rf8 {[%emt 0:06:28]} 25. Ne2 {[%emt 0:01:00]} e5 {[%emt 0:05:23]} 26. Bd5 {[%emt 0:04:56]} Rc7 {[%emt 0:00:09]} 27. Rc1 {[%emt 0:00:27]} Rxc1 {[%emt 0:03:01]} 28. Rxc1 {[%emt 0:00:12]} Nf6 {[%emt 0:00:25]} 29. Bb3 {[%emt 0:03:23]} Qd7 {[%emt 0:03:17]} 30. Qb6 {[%emt 0:12:18]} Rc8 {[%emt 0:10:11]} 31. Rxc8 {[%emt 0:00:41]} Qxc8 {[%emt 0:01:29]} 32. Qxd6 {[%emt 0:00:03]} Nxe4 {[%emt 0:00:11]} 33. Qd3 {[%emt 0:00:44]} Nf6 {[%emt 0:08:54]} 34. Ng3 {[%emt 0:06:02]} Qc1+ {[%emt 0:01:50]} 35. Kh2 {[%emt 0:00:02]} Qf4 {[%emt 0:00:07]} 36. Bc2 {[%emt 0:02:31]} e4 {[%emt 0:00:01]} 37. Qe3 {[%emt 0:02:29]} Qe5 {[%emt 0:00:01]} 38. Qc3 {[%emt 0:06:09]} Qf4 {[%emt 0:02:19]} 39. Qe3 {[%emt 0:00:10]} Qe5 {[%emt 0:00:01]} 40. Bxe4 {[%emt 0:01:48]} Nxe4 {[%emt 0:00:06]} 41. Qxe4 {[%emt 0:00:01]} Qxb2 {[%emt 0:00:07]} 42. h4 {[%emt 0:00:09]} Qf6 {[%emt 0:01:33]} 43. Qxb7 {[%emt 0:01:30]} 1/2-1/2

[Event "September Lviv Tradition 2019"]
[Site "Lviv"]
[Date "2019.09.25"]
[Round "4.5"]
[White "Cherniaiev, Tykhon"]
[Black "Vakulenko, Oleksandr"]
[Result "1/2-1/2"]
[ECO "C55"]
[WhiteElo "2112"]
[BlackElo "2167"]
[Annotator "NA"]
[PlyCount "70"]
[EventDate "2019.09.23"]
[EventType "tourn"]
[EventCountry "UKR"]
[SourceTitle "playchess.com"]
[Source "ChessBase"]
[SourceQuality "1"]
[TimeControl "5400+30"]

1. e4 {[%emt 0:00:00]} e5 {[%emt 0:00:00]} 2. Nf3 {[%emt 0:00:00]} Nc6 {[%emt 0:00:00]} 3. Bc4 {[%emt 0:00:22]} Nf6 {[%emt 0:00:17]} 4. d3 {[%emt 0:00:06]} h6 {[%emt 0:00:13]} 5. O-O {[%emt 0:00:56]} d6 $14 {[%emt 0:00:09]} 6. d4 {[%emt 0:01:11]} Bg4 {[%emt 0:15:42]} 7. dxe5 {[%emt 0:01:34]} dxe5 {[%emt 0:05:21]} 8. Nbd2 {[%emt 0:00:30]} Bd6 {[%emt 0:03:49]} 9. c3 {[%emt 0:00:43]} O-O {[%emt 0:00:54]} 10. Be2 {[%emt 0:21:14]} Nb8 {[%emt 0:04:57]} 11. Nc4 {[%emt 0:04:01]} Re8 {[%emt 0:06:15]} 12. Qc2 {[%emt 0:05:04]} Nbd7 {[%emt 0:02:35]} 13. Be3 {[%emt 0:07:54]} Bc5 {[%emt 0:07:42]} 14. Rad1 {[%emt 0:10:18]} Qe7 {[%emt 0:08:53]} 15. Rfe1 {[%emt 0:10:37]} Qe6 {[%emt 0:09:50]} 16. Bxc5 {[%emt 0:04:18]} Bxf3 {[%emt 0:01:31]} 17. Bxf3 {[%emt 0:00:23]} Qxc4 {[%emt 0:00:37]} 18. Ba3 {[%emt 0:00:10]} Qxa2 {[%emt 0:00:55]} 19. c4 {[%emt 0:00:43]} b5 {[%emt 0:05:17]} 20. cxb5 {[%emt 0:01:15]} Rac8 {[%emt 0:03:14]} 21. Qc6 {[%emt 0:05:13]} Qe6 {[%emt 0:04:01]} 22. Rc1 {[%emt 0:04:39]} Nb8 {[%emt 0:05:23]} 23. Qxe6 {[%emt 0:03:12]} Rxe6 {[%emt 0:00:09]} 24. Bc5 {[%emt 0:00:45]} a6 {[%emt 0:00:39]} 25. bxa6 {[%emt 0:00:13]} Nxa6 {[%emt 0:00:06]} 26. Ba3 {[%emt 0:00:11]} c5 {[%emt 0:05:40]} 27. Be2 {[%emt 0:01:03]} Rb6 {[%emt 0:01:09]} 28. Bxa6 {[%emt 0:01:35]} Rxa6 {[%emt 0:00:01]} 29. Rxc5 {[%emt 0:00:58]} Rxc5 {[%emt 0:00:09]} 30. Bxc5 {[%emt 0:00:03]} Nxe4 {[%emt 0:00:09]} 31. Ba3 {[%emt 0:00:07]} Nd6 {[%emt 0:01:01]} 32. Rxe5 {[%emt 0:00:21]} Nc4 {[%emt 0:00:11]} 33. Re1 {[%emt 0:00:12]} Rb6 {[%emt 0:01:01]} 34. h3 {[%emt 0:00:27]} Nxb2 {[%emt 0:00:39]} 35. Bxb2 {[%emt 0:00:05]} Rxb2 {[%emt 0:00:04]} 1/2-1/2